bitfinex-derivatives/quotes_SOLF0:USTF0_20251109
["timestamp","ask_amount","ask_price","bid_price","bid_amount"]
[1762650740496,3.22,157.33,157.3,1.59429378]
[1762650741198,3.26869596,157.34,157.3,1.59429378]
[1762650741600,0.04869596,157.34,157.33,1.55]
[1762650742500,0.04869596,157.34,157.32,7.273]
[1762650742899,3.26869596,157.34,157.32,7.273]
[1762650743303,3.26869596,157.34,157.32,1.55]
[1762650744000,3.26869596,157.34,157.3,0.04429378]
[1762650746103,8.99109596,157.34,157.3,0.04429378]
[1762650746403,3.22,157.33,157.3,0.04429378]
[1762650747205,3.22,157.32,157.3,0.04429378]
[1762650750308,3.22,157.31,157.3,0.04429378]
[1762650752911,8.01217769,157.31,157.3,0.04429378]
[1762650753310,3.22,157.31,157.3,0.04429378]
[1762650774026,8.9434,157.31,157.3,0.04429378]
[1762650774327,13.75125853,157.31,157.3,0.04429378]
[1762650775731,2.93,157.28,157.24,7.2756]
[1762650776729,2.97365784,157.28,157.24,7.3197007]
[1762650776923,8.69815784,157.28,157.24,7.3197007]
[1762650777129,2.93,157.27,157.24,7.3197007]
[1762650777631,2.93,157.27,157.25,1.55]
[1762650778128,0.04365784,157.28,157.25,5.7256]
[1762650778425,0.04365784,157.28,157.26,1.55]
[1762650779933,0.04365784,157.28,157.26,7.2752]
[1762650780740,0.04365784,157.28,157.27,1.55]
[1762650783143,3.02,157.27,157.24,5.7698007]
[1762650783741,3.02,157.27,157.24,1.6041007]
[1762650785944,0.04365784,157.28,157.24,7.3299007]
[1762650786146,0.04365784,157.28,157.25,1.56]
[1762650786540,3.06365784,157.28,157.25,1.56]
[1762650788348,4.82920651,157.27,157.25,1.56]
[1762650788648,3.06365784,157.28,157.25,1.56]
[1762650788947,4.82904816,157.27,157.25,1.56]
[1762650789242,3.06365784,157.28,157.25,1.56]
[1762650789447,4.82922507,157.27,157.25,1.56]
[1762650789647,3.06365784,157.28,157.25,1.56]
[1762650789845,7.84922507,157.27,157.25,1.56]
[1762650790042,3.02,157.27,157.25,1.56]
[1762650790247,3.02,157.27,157.24,5.7699007]
[1762650790248,3.02,157.27,157.24,7.3299007]
[1762650790451,3.02,157.27,157.25,1.56]
[1762650795457,3.02,157.27,157.25,7.2855]
[1762650796353,3.02,157.27,157.24,1.6041007]
[1762650797148,3.02,157.27,157.24,0.0441007]
[1762650797444,3.02,157.25,157.24,0.0441007]
[1762650804454,7.86310598,157.25,157.24,0.0441007]
[1762650804860,3.02,157.25,157.24,0.0441007]
[1762650806162,3.02,157.27,157.24,1.6041007]
[1762650806459,3.02,157.25,157.24,0.0441007]
[1762650809364,3.02,157.27,157.24,7.3300007]
[1762650809566,3.02,157.27,157.25,1.56]
[1762650810165,3.02,157.27,157.24,0.0441007]
[1762650811864,3.02,157.27,157.24,1.6041007]
[1762650812061,3.02,157.27,157.24,7.3300007]
[1762650812367,3.02,157.27,157.25,1.56]
[1762650816569,3.02,157.27,157.24,1.6041007]
[1762650816764,2.98,157.25,157.24,0.0441007]
[1762650817871,7.82682364,157.25,157.24,0.0441007]
[1762650821174,3.02365784,157.28,157.24,1.6041007]
[1762650821371,7.8272824,157.27,157.24,1.6041007]
[1762650821574,4.8472824,157.26,157.24,1.6041007]
[1762650821761,2.98,157.26,157.24,7.3300007]
[1762650821968,2.98,157.27,157.25,1.56]
[1762650822168,4.84689016,157.26,157.25,1.56]
[1762650822368,0.04365784,157.28,157.26,7.2852]
[1762650822669,0.04365784,157.28,157.27,1.56]
[1762650822864,4.86712778,157.28,157.27,1.56]
[1762650823065,4.86712778,157.28,157.26,7.2852]
[1762650823268,0.04365784,157.28,157.26,7.2852]
[1762650823468,0.04365784,157.28,157.27,1.56]
[1762650828770,3.25365784,157.28,157.26,7.2852]
[1762650830870,3.25365784,157.28,157.24,7.3298007]
[1762650831075,3.25365784,157.28,157.25,1.56]
[1762650833979,3.25365784,157.28,157.25,7.2855]
[1762650837382,3.25365784,157.28,157.26,5.7252]
[1762650837979,3.25365784,157.28,157.27,1.56]
[1762650837980,0.04365784,157.28,157.27,1.56]
[1762650838182,3.21,157.33,157.3,7.2837]
[1762650838485,4.78914455,157.32,157.3,7.2837]
[1762650838674,3.21,157.33,157.31,1.56]
[1762650839372,3.21,157.33,157.31,7.2832]
[1762650839578,3.21,157.33,157.31,1.56]
[1762650841182,3.21,157.33,157.3,0.0438401]
[1762650843078,3.21,157.33,157.3,5.7675401]
[1762650843691,3.21,157.33,157.31,7.2833]
[1762650843980,3.15086184,157.34,157.31,7.2833]
[1762650848387,3.15086184,157.34,157.3,0.0438401]
[1762650849186,3.15086184,157.34,157.3,1.6038401]
[1762650849684,3.15086184,157.34,157.3,7.3275401]
[1762650850183,3.15086184,157.34,157.3,1.6038401]
[1762650850986,3.15086184,157.34,157.31,7.2834]
[1762650853683,3.11,157.33,157.3,0.0438401]
[1762650856092,3.11,157.31,157.3,0.0438401]
[1762650856294,3.11,157.3,157.25,1.56]
[1762650856486,3.11,157.3,157.26,7.2851]
[1762650856687,3.11,157.3,157.27,1.56]
[1762650857993,3.11,157.3,157.28,5.7245]
[1762650858994,3.11,157.3,157.27,1.60873851]
[1762650859287,3.11,157.3,157.27,0.04873851]
[1762650859695,4.93215934,157.3,157.27,0.04873851]
[1762650859893,3.11,157.29,157.27,0.04873851]
[1762650861498,8.8342,157.29,157.27,0.04873851]
[1762650861795,7.86668299,157.28,157.27,0.04873851]
[1762650862597,3.11,157.3,157.27,1.60873851]
[1762650863292,0.04499593,157.31,157.29,1.56]
[1762650864997,0.04499593,157.31,157.29,7.284]
[1762650865296,0.04499593,157.31,157.3,1.56]
[1762650869189,3.11,157.39,157.32,1.56]
[1762650869390,4.75298637,157.38,157.32,1.56]
[1762650869591,3.11,157.39,157.32,1.56]
[1762650869899,7.86244602,157.38,157.34,1.56]
[1762650870200,3.1543228,157.38,157.34,1.60844782]
[1762650870689,3.1543228,157.38,157.35,5.7219]
[1762650872502,3.1543228,157.38,157.35,7.2819]
[1762650877107,3.1543228,157.38,157.36,7.2815]
[1762650877499,0.0443228,157.38,157.37,1.56]
[1762650879598,5.83432345,157.45,157.39,1.56]
[1762650879801,2.99,157.43,157.39,1.56]
[1762650880701,3.03753236,157.43,157.39,1.60643963]
[1762650881807,3.03753236,157.43,157.39,0.04643963]
[1762650882504,2.99,157.42,157.39,0.04643963]
[1762650882899,5.83432345,157.42,157.39,0.04643963]
[1762650883097,2.99,157.41,157.39,0.04643963]
[1762650886004,2.97753236,157.43,157.39,1.59643963]
[1762650886502,2.97753236,157.43,157.41,5.7197]
[1762650892414,2.97753236,157.43,157.41,7.2697]
[1762650900416,0.04753236,157.43,157.42,1.55]
[1762650905629,2.92,157.49,157.45,1.55]
[1762650906223,2.92,157.54,157.48,1.55]
[1762650906617,5.7159,157.52,157.49,0.04309412]
[1762650906918,2.96803209,157.53,157.49,1.59309412]
[1762650907717,2.96803209,157.53,157.49,7.30989412]
[1762650907921,0.04803209,157.53,157.5,1.55]
[1762650908428,2.96803209,157.53,157.5,1.55]
[1762650909323,0.04803209,157.53,157.51,1.55]
[1762650910219,2.96803209,157.53,157.51,1.55]
[1762650911228,2.96803209,157.53,157.49,0.04309412]
[1762650911727,2.96803209,157.53,157.49,1.59309412]
[1762650913528,2.96803209,157.53,157.49,0.04309412]
[1762650914136,2.92,157.52,157.49,0.04309412]
[1762650914431,5.76353209,157.53,157.49,0.04309412]
[1762650914432,2.92,157.5,157.49,0.04309412]
[1762650918129,2.92,157.52,157.49,0.04309412]
[1762650919631,8.6359,157.52,157.49,0.04309412]
[1762650919837,2.92,157.51,157.49,0.04309412]
[1762650924936,2.92,157.51,157.49,1.59309412]
[1762650925332,2.96803209,157.53,157.5,1.55]
[1762650926934,2.96803209,157.53,157.5,7.2664]
[1762650927651,2.96803209,157.53,157.5,1.55]
[1762650927849,2.96803209,157.53,157.49,0.04309412]
[1762650928552,8.68353209,157.53,157.49,0.04309412]
[1762650928850,2.96803209,157.53,157.49,0.04309412]
[1762650930052,2.92,157.51,157.49,0.04309412]
[1762650932752,2.92,157.51,157.49,1.59309412]
[1762650933249,2.92,157.51,157.49,0.04309412]
[1762650934151,5.08469527,157.53,157.49,1.59309412]
[1762650934350,3.26803209,157.53,157.49,1.59309412]
[1762650934750,3.26803209,157.53,157.5,7.2664]
[1762650934957,3.26803209,157.53,157.51,1.55]
[1762650935451,0.04803209,157.53,157.51,1.55]
[1762650935653,0.04803209,157.53,157.51,7.2661]
[1762650935957,0.04803209,157.53,157.51,1.55]
[1762650937353,3.26803209,157.53,157.51,1.55]
[1762650938251,3.26803209,157.53,157.51,7.2661]
[1762650939454,0.04803209,157.53,157.51,7.2661]
[1762650940853,3.26803209,157.53,157.51,7.2661]
[1762650941661,3.26803209,157.53,157.51,1.55]
[1762650943959,3.26803209,157.53,157.49,0.04309412]
[1762650944164,3.22,157.51,157.49,0.04309412]
[1762650945756,5.03666318,157.5,157.49,0.04309412]
[1762650945953,9.74010581,157.5,157.49,0.04309412]
[1762650946263,3.22,157.49,157.42,1.56]
[1762650947260,3.22,157.49,157.45,7.2782]
[1762650947560,0.04457214,157.46,157.45,7.2782]
[1762650970469,3.00457214,157.46,157.43,1.60358435]
[1762650970673,3.00457214,157.46,157.43,0.04358435]
[1762650972173,1.86123532,157.46,157.43,0.04358435]
[1762650972371,2.96,157.45,157.43,0.04358435]
[1762650973983,2.96,157.45,157.43,5.76258435]
[1762650974579,3.00457214,157.46,157.44,7.2784]
[1762650974778,3.00457214,157.46,157.44,5.7184]
[1762650975288,3.00457214,157.46,157.43,0.04358435]
[1762650976786,2.96,157.44,157.43,0.04358435]
[1762650976982,2.96,157.43,157.34,1.56]
[1762650977183,2.96,157.39,157.34,1.56]
[1762650977388,2.96,157.39,157.32,1.56]
[1762650978289,3.00251214,157.37,157.35,5.7219]
[1762650978784,2.96,157.43,157.39,1.56]
[1762650979676,1.81666318,157.47,157.39,1.56]
[1762650979881,2.96,157.46,157.42,5.7193]
[1762650980279,3.00595536,157.46,157.42,5.76535053]
[1762650980876,3.00595536,157.46,157.42,0.04605053]
[1762650981785,2.96,157.45,157.42,0.04605053]
[1762650981978,4.77666318,157.45,157.42,0.04605053]
[1762650982178,2.96,157.44,157.42,0.04605053]
[1762650982587,4.77666318,157.43,157.42,0.04605053]
[1762650983386,2.96,157.41,157.34,1.6]
[1762650983586,2.96,157.4,157.34,1.6]
[1762650984289,2.96,157.4,157.37,1.6]
[1762650984897,2.96,157.4,157.37,7.3211]
[1762650985189,3.00738053,157.4,157.37,7.3684216]
[1762650985493,3.00738053,157.4,157.37,1.6473216]
[1762650987000,3.00738053,157.4,157.37,0.0473216]
[1762650988096,0.04738053,157.4,157.37,1.6473216]
[1762650988295,0.04738053,157.4,157.38,7.3207]
[1762650988603,0.04738053,157.4,157.39,1.6]
[1762650990607,7.64346813,157.47,157.41,1.6]
[1762650990817,2.96,157.47,157.41,1.6]
[1762650992105,3.18810022,157.46,157.43,7.3189]
[1762650992712,3.18810022,157.46,157.42,0.04497584]
[1762650993308,3.18810022,157.46,157.42,1.64497584]
[1762650994015,3.18810022,157.46,157.42,7.36427584]
[1762650994212,3.18810022,157.46,157.42,1.64497584]
[1762650995010,3.18810022,157.46,157.43,7.3189]
[1762650999215,3.18810022,157.46,157.43,1.6]
[1762651001204,3.18810022,157.46,157.42,5.76417584]
[1762651001410,3.18810022,157.46,157.42,0.04497584]
[1762651001715,3.18810022,157.46,157.42,1.64497584]
[1762651002310,3.18810022,157.46,157.43,5.719]
[1762651002506,3.18810022,157.46,157.43,7.319]
[1762651005923,3.18810022,157.46,157.44,1.59]
[1762651007414,3.18810022,157.46,157.44,7.3087]
[1762651008818,0.04810022,157.46,157.44,7.3087]
[1762651009022,0.04810022,157.46,157.45,1.59]
[1762651009525,0.04810022,157.46,157.44,7.3087]
[1762651013925,3.25810022,157.46,157.44,7.3087]
[1762651018432,0.04810022,157.46,157.44,7.3087]
[1762651020618,3.25810022,157.46,157.44,7.3087]
[1762651022619,3.25810022,157.46,157.42,0.04497584]
[1762651023532,3.13,157.44,157.42,0.04497584]
[1762651024127,3.13,157.43,157.36,1.6]
[1762651024322,3.13,157.41,157.36,1.6]
[1762651024527,3.13,157.39,157.36,1.6]
[1762651025024,3.1735211,157.39,157.36,0.04004701]
[1762651027837,3.1735211,157.39,157.36,1.64004701]
[1762651028237,3.1735211,157.39,157.36,0.04004701]
[1762651030042,3.13,157.38,157.36,0.04004701]
[1762651030941,8.851,157.38,157.36,0.04004701]
[1762651031141,3.13,157.37,157.36,0.04004701]
[1762651039349,3.13,157.35,157.31,1.6]
[1762651039550,3.13,157.35,157.3,1.6]
[1762651039741,3.13,157.33,157.29,1.6]
[1762651040142,3.17378065,157.33,157.29,0.04279472]
[1762651040645,3.13,157.32,157.29,0.04279472]
[1762651040846,0.04378065,157.33,157.29,1.64279472]
[1762651041149,0.04378065,157.33,157.31,1.6]
[1762651041742,0.04378065,157.33,157.31,7.3234]
[1762651041941,0.04378065,157.33,157.32,1.6]
[1762651044450,3.17378065,157.33,157.31,5.7234]
[1762651044840,3.17378065,157.33,157.29,1.64279472]
[1762651046050,3.17378065,157.33,157.3,7.3237]
[1762651046253,0.04378065,157.33,157.31,1.6]
[1762651047951,0.04378065,157.33,157.31,7.3233]
[1762651049051,0.04378065,157.33,157.32,1.6]
[1762651051351,3.17378065,157.33,157.31,5.7233]
[1762651052146,3.17378065,157.33,157.31,7.3233]
[1762651052346,3.17378065,157.33,157.32,1.6]
[1762651052347,0.04378065,157.33,157.32,1.6]
[1762651053250,0.04378065,157.33,157.31,7.3233]
[1762651054653,0.04378065,157.33,157.32,1.6]
[1762651056848,0.04378065,157.33,157.31,7.3233]
[1762651058257,0.04378065,157.33,157.32,1.6]
[1762651058858,0.04378065,157.33,157.31,7.3233]
[1762651059255,0.04378065,157.33,157.32,1.6]
[1762651059561,0.04378065,157.33,157.31,7.3233]
[1762651060156,0.04378065,157.33,157.32,1.6]
[1762651079570,3.22378065,157.33,157.3,1.6]
[1762651080772,0.04378065,157.33,157.32,1.6]
[1762651081973,2.98378065,157.33,157.3,1.6]
[1762651082267,0.04378065,157.33,157.3,1.6]
[1762651082472,0.04378065,157.33,157.32,7.323]
[1762651085883,2.98378065,157.33,157.3,1.6]
[1762651086989,2.98378065,157.33,157.31,7.3234]
[1762651087391,0.04378065,157.33,157.32,1.6]
[1762651088192,0.04378065,157.33,157.32,7.323]
[1762651089390,2.94,157.42,157.35,1.6]
[1762651089592,1.82048696,157.39,157.35,1.6]
[1762651089783,1.82048696,157.39,157.32,1.6]
[1762651089784,12.39617607,157.38,157.32,1.6]
[1762651089984,2.94,157.37,157.32,1.6]
[1762651090284,0.04565859,157.36,157.32,1.6]
[1762651090483,0.04565859,157.36,157.34,1.6]
[1762651091087,2.98565859,157.36,157.34,1.6]
[1762651095598,0.04565859,157.36,157.35,1.6]
[1762651120514,0.04565859,157.36,157.35,7.322]
[1762651129513,3.05,157.45,157.4,1.6]
[1762651129708,3.05,157.43,157.4,1.6]
[1762651130619,3.09211122,157.43,157.4,1.64207528]
[1762651131117,3.09211122,157.43,157.4,7.36217528]
[1762651132117,3.09211122,157.43,157.41,5.7197]
[1762651132317,3.09211122,157.43,157.41,7.3197]
[1762651137818,3.09211122,157.43,157.41,1.6]
[1762651141117,3.09211122,157.43,157.4,0.04207528]
[1762651141322,3.05,157.41,157.4,0.04207528]
[1762651143220,3.04211122,157.43,157.4,1.64207528]
[1762651144116,3.04211122,157.43,157.41,5.7197]
[1762651147722,0.04211122,157.43,157.42,7.3194]
[1762651150224,0.04211122,157.43,157.4,1.64207528]
[1762651150225,3.04211122,157.43,157.4,1.64207528]
[1762651150416,3.04211122,157.43,157.4,0.04207528]
[1762651150620,7.66062512,157.42,157.4,0.04207528]
[1762651150822,3.0,157.4,157.35,1.6]
[1762651151831,0.04620834,157.39,157.37,1.6]
[1762651152331,3.04620834,157.39,157.37,1.6]
[1762651153123,3.04620834,157.39,157.36,0.04282946]
[1762651155028,3.0,157.38,157.36,0.04282946]
[1762651155627,0.04620834,157.39,157.36,1.64282946]
[1762651157040,0.04620834,157.39,157.37,7.3212]
[1762651157232,0.04620834,157.39,157.38,1.6]
[1762651163939,3.0,157.46,157.38,1.6]
[1762651164140,7.68472871,157.45,157.41,1.6]
[1762651164448,4.68472871,157.44,157.41,1.6]
[1762651164646,3.0,157.45,157.43,1.6]
[1762651164846,4.68444955,157.44,157.43,1.6]
[1762651165151,3.04530696,157.45,157.43,1.6]
[1762651165944,0.04530696,157.45,157.44,1.6]
[1762651170459,3.04530696,157.45,157.43,5.719]
[1762651170748,3.04530696,157.45,157.43,7.319]
[1762651171350,0.04530696,157.45,157.43,7.319]
[1762651174754,2.97530696,157.45,157.43,1.6]
[1762651176056,2.97530696,157.45,157.43,7.319]
[1762651176751,2.97530696,157.45,157.42,0.04594941]
[1762651176959,4.79280515,157.45,157.42,0.04594941]
[1762651177155,2.93,157.44,157.42,0.04594941]
[1762651178360,2.93,157.43,157.42,0.04594941]
[1762651178556,4.74749819,157.43,157.42,0.04594941]
[1762651178754,2.93,157.42,157.35,1.6]
[1762651178960,19.3506673,157.49,157.35,1.6]
[1762651178961,2.93,157.4,157.35,1.6]
[1762651179151,2.93,157.38,157.35,1.6]
[1762651179663,2.97057187,157.38,157.35,1.64045568]
[1762651180552,2.97057187,157.38,157.35,0.04045568]
[1762651180862,2.97057187,157.38,157.36,1.6]
[1762651181562,2.97057187,157.38,157.36,7.3215]
[1762651182966,0.04057187,157.38,157.37,1.6]
[1762651185150,3.23,157.42,157.39,1.6]
[1762651185960,5.04749819,157.45,157.39,1.6]
[1762651186169,3.27463496,157.44,157.4,1.64878581]
[1762651186966,3.27463496,157.44,157.4,7.36888581]
[1762651189260,3.27463496,157.44,157.41,5.7197]
[1762651189564,3.27463496,157.44,157.41,7.3197]
[1762651196171,3.27463496,157.44,157.4,0.04878581]
[1762651196172,3.23,157.43,157.4,1.64878581]
[1762651196368,3.23,157.43,157.4,0.04878581]
[1762651197169,3.23,157.43,157.4,1.64878581]
[1762651199874,3.23,157.43,157.4,0.04878581]
[1762651202575,3.23,157.43,157.41,1.6]
[1762651202768,3.06463496,157.44,157.41,1.6]
[1762651202972,3.06463496,157.44,157.4,0.04878581]
[1762651204377,3.02,157.42,157.4,0.04878581]
[1762651207782,3.06463496,157.44,157.41,1.6]
[1762651208981,3.06463496,157.44,157.41,7.3197]
[1762651210681,3.06463496,157.44,157.4,0.04878581]
[1762651211978,3.02,157.42,157.4,0.04878581]
[1762651214178,8.7394,157.42,157.4,0.04878581]
[1762651214383,3.02,157.41,157.4,0.04878581]
[1762651217182,4.83749819,157.43,157.4,7.36878581]
[1762651217481,3.02,157.43,157.4,7.36878581]
[1762651219784,3.02,157.43,157.41,1.6]
[1762651220584,3.02,157.43,157.4,7.36878581]
[1762651223399,3.02,157.43,157.41,7.3197]
[1762651224789,3.06463496,157.44,157.41,7.3197]
[1762651225291,4.69927331,157.43,157.41,7.3197]
[1762651225489,3.06463496,157.44,157.41,7.3197]
[1762651225691,4.69927331,157.43,157.41,7.3197]
[1762651226000,3.06463496,157.44,157.41,7.3197]
[1762651226302,7.71927331,157.43,157.41,7.3197]
[1762651226506,3.02,157.43,157.41,7.3197]
[1762651227607,3.06463496,157.44,157.41,7.3197]
[1762651227807,4.70114181,157.43,157.41,7.3197]
[1762651228009,3.06463496,157.44,157.41,7.3197]
[1762651228212,4.70114181,157.43,157.41,7.3197]
[1762651228407,3.06463496,157.44,157.41,7.3197]
[1762651228604,7.72125514,157.43,157.41,7.3197]
[1762651228804,3.02,157.43,157.41,7.3197]
[1762651234910,3.02,157.43,157.41,1.6]
[1762651235116,3.02,157.43,157.4,0.04878581]
[1762651237913,3.13,157.41,157.4,0.04878581]
[1762651238114,7.83071481,157.41,157.4,0.04878581]
[1762651243122,3.13,157.41,157.4,0.04878581]
[1762651246726,3.13,157.41,157.4,5.76888581]
[1762651250429,3.13,157.41,157.4,0.04878581]
[1762651251826,3.12,157.43,157.4,1.64878581]
[1762651253029,7.81953746,157.42,157.4,7.36888581]
[1762651253226,3.12,157.42,157.4,7.36888581]
[1762651253729,3.12,157.43,157.41,7.3198]
[1762651254117,3.12,157.43,157.4,0.04878581]
[1762651254427,3.12,157.41,157.4,0.04878581]
[1762651255034,3.12,157.41,157.4,1.64878581]
[1762651255231,3.12,157.43,157.4,1.64878581]
[1762651255423,7.81137977,157.42,157.4,1.64878581]
[1762651255622,3.16463496,157.44,157.41,7.3196]
[1762651255826,7.81125102,157.43,157.41,7.3196]
[1762651256026,3.12,157.43,157.41,7.3196]
[1762651256734,0.04463496,157.44,157.43,1.6]
[1762651257030,4.73580505,157.44,157.43,1.6]
[1762651260734,0.04463496,157.44,157.43,1.6]
[1762651279043,3.18463496,157.44,157.43,1.6]
[1762651279244,3.18463496,157.44,157.43,7.319]
[1762651283346,0.04463496,157.44,157.43,7.319]
[1762651295345,0.04463496,157.44,157.43,1.6]
[1762651295550,3.02463496,157.44,157.41,1.6]
[1762651296450,3.02463496,157.44,157.4,0.04878581]
[1762651296451,2.98,157.43,157.4,1.64878581]
[1762651298045,2.98,157.43,157.4,7.36888581]
[1762651300058,2.98,157.43,157.4,0.04878581]
[1762651300253,4.79849059,157.42,157.4,0.04878581]
[1762651300554,2.98,157.41,157.4,0.04878581]
[1762651303254,1.81849059,157.42,157.4,0.04878581]
[1762651303454,0.04463496,157.44,157.4,1.64878581]
[1762651304158,0.04463496,157.44,157.43,1.6]
[1762651327885,0.04463496,157.44,157.43,7.319]
[1762651345293,0.04463496,157.44,157.42,1.81849059]
[1762651345294,8.89109795,157.49,157.47,5.7175]
[1762651346405,5.94109795,157.49,157.48,7.3172]
[1762651346604,8.89109795,157.49,157.48,5.7172]
[1762651347108,10.67274782,157.49,157.48,7.3172]
[1762651347301,5.94109795,157.49,157.48,7.3172]
[1762651366518,9.795e-05,157.49,157.48,7.3172]
[1762651381031,3.03009795,157.49,157.48,7.3172]
[1762651381531,9.795e-05,157.49,157.48,7.3172]
[1762651382040,9.795e-05,157.49,157.48,5.7172]
[1762651382534,9.795e-05,157.49,157.48,7.3172]
[1762651382833,9.795e-05,157.49,157.48,5.7172]
[1762651391739,0.04334875,157.5,157.48,5.7172]
[1762651392039,3.03,157.54,157.53,7.3154]
[1762651393242,0.04879488,157.55,157.54,1.6]
[1762651393941,3.03,157.59,157.56,1.6]
[1762651394337,3.03,157.59,157.58,5.7136]
[1762651399042,3.03,157.59,157.57,0.04678527]
[1762651400648,3.03,157.57,157.5,24.2]
[1762651401148,3.03,157.57,157.51,1.6]
[1762651401652,3.03,157.55,157.52,0.04511539]
[1762651402050,3.03,157.55,157.53,5.7151]
[1762651406256,3.07566808,157.56,157.55,5.7147]
[1762651406958,0.04566808,157.56,157.55,7.3147]
[1762651409663,3.07566808,157.56,157.55,5.7147]
[1762651409862,3.07566808,157.56,157.54,5.7147]
[1762651410664,3.07566808,157.56,157.54,7.3147]
[1762651411562,3.07566808,157.56,157.52,0.04511539]
[1762651411867,3.07566808,157.56,157.52,1.64511539]
[1762651413066,3.07566808,157.56,157.52,7.36081539]
[1762651413367,3.07566808,157.56,157.52,0.04511539]
[1762651414267,3.13,157.55,157.52,5.76081539]
[1762651416769,3.13,157.55,157.52,0.04511539]
[1762651416770,8.8448,157.55,157.52,0.04511539]
[1762651416967,3.13,157.54,157.52,0.04511539]
[1762651426776,3.13,157.54,157.52,1.64511539]
[1762651427478,3.13,157.54,157.52,7.36091539]
[1762651430574,3.13,157.54,157.53,5.7154]
[1762651430781,3.15566808,157.56,157.54,1.6]
[1762651431276,3.15566808,157.56,157.53,7.3154]
[1762651435480,3.15566808,157.56,157.54,5.715]
[1762651436381,3.15566808,157.56,157.53,1.6]
[1762651436678,3.15566808,157.56,157.52,1.64511539]
[1762651437979,3.15566808,157.56,157.53,7.3154]
[1762651441991,3.15566808,157.56,157.53,5.7154]
[1762651445092,3.15566808,157.56,157.53,7.2954]
[1762651451196,9.2037095,157.55,157.52,0.04511539]
[1762651451396,3.01,157.53,157.52,0.04511539]
[1762651451597,12.21411157,157.53,157.52,0.04511539]
[1762651451900,7.61307991,157.53,157.52,0.04511539]
[1762651452398,12.21591409,157.53,157.52,0.04511539]
[1762651455602,7.61307991,157.53,157.52,0.04511539]
[1762651455896,12.21783732,157.53,157.52,0.04511539]
[1762651457303,3.01,157.53,157.52,0.04511539]
[1762651459502,3.01,157.55,157.53,1.58]
[1762651460189,3.01,157.55,157.52,5.76081539]
[1762651460190,3.01,157.55,157.52,7.34081539]
[1762651461306,3.01,157.53,157.52,0.04511539]
[1762651461616,7.6166939,157.53,157.52,0.04511539]
[1762651461796,12.22196077,157.53,157.52,0.04511539]
[1762651462305,7.6166939,157.53,157.52,0.04511539]
[1762651462504,12.22188237,157.53,157.52,0.04511539]
[1762651467505,3.01,157.51,157.47,7.2973]
[1762651468008,3.01,157.51,157.48,5.7172]
[1762651468307,8.7264,157.51,157.45,1.8160235]
[1762651468508,3.05272859,157.5,157.46,0.04449928]
[1762651468704,3.01,157.48,157.46,0.04072527]
[1762651469807,7.61626584,157.47,157.46,0.04072527]
[1762651470009,12.21229506,157.47,157.46,0.04072527]
[1762651470308,3.01,157.47,157.46,0.04072527]
[1762651474408,3.01,157.47,157.42,1.58]
[1762651475521,3.16607406,157.46,157.43,1.64148]
[1762651475810,3.16607406,157.46,157.43,7.36048]
[1762651485517,3.16607406,157.46,157.43,5.76048]
[1762651486612,3.16607406,157.46,157.43,0.04148]
[1762651487711,3.16607406,157.46,157.43,1.64148]
[1762651490623,3.16607406,157.46,157.43,7.36048]
[1762651491125,3.16607406,157.46,157.44,1.6]
[1762651494220,3.16607406,157.46,157.43,5.76048]
[1762651494726,2.97,157.45,157.43,0.04148]
[1762651498423,2.97,157.45,157.38,1.6]
[1762651499319,2.97,157.42,157.4,0.04621634]
[1762651501526,2.97,157.42,157.3,2.84006948]
[1762651501732,2.97,157.42,157.33,267.93654304]
[1762651502730,3.04,157.38,157.36,0.04826811]
[1762651508228,3.04,157.38,157.31,6.6632]
[1762651508420,3.04,157.37,157.31,0.94]
[1762651508938,3.04,157.37,157.32,0.94]
[1762651509127,0.0437365,157.36,157.33,0.04319612]